Cogmind - Beta 11.1 *** ADVENTURER MODE // 2022.04.24 @ 09:41:29 Player: Owlsley Result: Fortifying 0b10! Performance ------------- Evolutions (9) 4500 Regions Visited (28) 5600 Robots Destroyed (451) 2255 Value Destroyed (30031) 30031 Prototype IDs (48) 960 Alien Tech Used (11) 2200 Bonus (18528) 18528 TOTAL SCORE: 64074 Bonus ------- High Alert Combat Kills 1798 Follower Combat Kills 1901 Entered Garrisons 600 Used RIF Installer 1500 Network Hubs Disabled 200 Built Enhanced Grunts 300 Met R17 at Cetus 500 Met MAIN.C 5000 Destroyed MAIN.C Shell 5000 Win 3000 Friendly Fire -1271 Cogmind --------- Core Integrity 1220/1850 Matter 223/300 Energy 1421/1720 System Corruption 0% Temperature Warm (135) Movement Treading (135) Location By MAIN.C's Side Parts ------- > --- POWER (4) -------- Cooled Antimatter Reactor Zero-point Reactor Vortex Chain Reactor > --- PROPULSION (6) --- Experimental Biometal Heavy Treads Experimental Biometal Heavy Treads Experimental Biometal Heavy Treads > --- UTILITY (11) ----- Experimental Power Amplifier Advanced Cooling System Advanced Cooling System Experimental Cooling System Huge Storage Unit Experimental Energy Well Experimental Optical Array Advanced Targeting Computer Experimental Core Analyzer Advanced Weapon Cycler Experimental EM Disruption Field > --- WEAPON (4) ------- Enhanced Nova Cannon Enhanced Nova Cannon Improved Potential Cannon > --- INVENTORY (25) --- Biometal Heavy Treads Biometal Heavy Treads Experimental Core Shielding Graphene Brace Improved Focal Shield Thermal Barrier Advanced Hardlight Generator Long-range Tractor Beam Core Reset Matrix Spacefold Activator Heavy Quantum Rifle Sigix Sheargun Core Cannon Heavy Hardcell Cannon Graviton Cannon Neutron Missile Launcher Peak State ------------ > --- POWER ------------ Cooled Antimatter Reactor Zero-point Reactor Vortex Chain Reactor > --- PROPULSION ------- Experimental Biometal Heavy Treads Experimental Biometal Heavy Treads Experimental Biometal Heavy Treads > --- UTILITY ---------- Experimental Cooling System Experimental Cooling System Huge Storage Unit Experimental Energy Well Experimental Optical Array Advanced Targeting Computer Experimental Core Analyzer Graphene Brace Thermal Barrier Experimental EM Disruption Field Experimental System Purifier > --- WEAPON ----------- Sigix Sheargun Null Cannon Improved Potential Cannon > --- INVENTORY -------- Cooled Antimatter Reactor Biometal Heavy Treads Biometal Heavy Treads Experimental Power Amplifier Advanced Cooling System Advanced Cooling System Advanced Weapon Cycler Experimental Core Shielding Improved Focal Shield Advanced Hardlight Generator Energy Mantle Long-range Tractor Beam Mini Drone Bay Core Reset Matrix Spacefold Activator Compact HERF Cannon Enhanced Nova Cannon Enhanced Nova Cannon Enhanced Nova Cannon Core Cannon Helical Railgun Neutron Missile Launcher [Rating: 254] Favorites ----------- Power Quantum Reactor Engine Ion Engine Power Core Light Nuclear Core Reactor Quantum Reactor Propulsion Light Treads Treads Light Treads Leg Aluminum Leg Wheel Armored Huge Wheel Utility Huge Storage Unit Device Experimental Cooling System Storage Huge Storage Unit Processor Advanced Targeting Computer Hackware Relay Coupler [Grunt] Protection Hardened Medium Armor Plating Artifact Phase Redirector Weapon Enhanced Nova Cannon Energy Gun Advanced Variable Charge Gun Energy Cannon Enhanced Nova Cannon Ballistic Gun Helical Railgun Ballistic Cannon Improved Light Cannon Launcher Neutron Missile Launcher Special Weapon Remote Datajack Impact Weapon Hammer Piercing Weapon Plasma Lance Build | -11 -10 -10 -9 -9 -9 -8 -8 -8 -8 -8 -7 -7 -6 -6 -6 -5 -5 -5 -5 -5 -4 -3 -3 -3 -2 -2 -1 -1 ------- Run | Scr Mat Min Mat Min Exi Min Mat Gar Mat Gar Fac Gar Fac Was Fac Fac Ext Cet Arc Hub Fac Res Qua Sec Res Tes Acc Com Slots Evolved 18 | . . . 2 . . . 2 . . . 2 . 2 . . 2 . . . . 2 2 . . 2 . 2 . Power 3 | . . . . . . . . . . . . . . . . . . . . . 1 1 . . . . 1 . Propulsion 4 | . . . 2 . . . . . . . . . . . . . . . . . . . . . 2 . . . Utility 9 | . . . . . . . 2 . . . 2 . 2 . . 1 . . . . 1 1 . . . . . . Weapon 2 | . . . . . . . . . . . . . . . . 1 . . . . . . . . . . 1 . Parts Attached 437 | 2 7 1 23 2 . 4 14 12 8 20 10 17 39 10 9 3 6 7 2 1 26 5 26 63 21 26 40 33 Power 28 | . . . 1 . . . 1 . . 1 1 1 1 1 . . . 1 . . 2 1 2 3 2 4 3 3 Engine 2 | . . . . . . . . . . 1 . 1 . . . . . . . . . . . . . . . . Core 3 | . . . 1 . . . 1 . . . 1 . . . . . . . . . . . . . . . . . Reactor 23 | . . . . . . . . . . . . . 1 1 . . . 1 . . 2 1 2 3 2 4 3 3 Propulsion 61 | . . 1 14 . . . 4 2 5 5 3 1 4 . 3 1 4 2 . . . . 3 1 5 . 1 2 Treads 53 | . . . 11 . . . 4 2 5 5 2 1 2 . 2 1 4 2 . . . . 3 1 5 . 1 2 Leg 4 | . . 1 3 . . . . . . . . . . . . . . . . . . . . . . . . . Wheel 4 | . . . . . . . . . . . 1 . 2 . 1 . . . . . . . . . . . . . Hover . | . . . . . . . . . . . . . . . . . . . . . . . . . . . . . Flight . | . . . . . . . . . . . . . . . . . . . . . . . . . . . . . Utility 181 | 1 4 . 2 . . 1 7 3 1 4 3 3 14 2 5 1 2 2 2 1 15 2 5 39 11 10 21 20 Device 144 | 1 2 . . . . 1 3 1 1 4 3 2 11 1 1 1 1 1 2 1 13 2 3 34 10 9 20 16 Storage 14 | . 2 . 2 . . . . . . . . . . 1 1 . 1 1 . . 1 . . . . 1 1 3 Processor 12 | . . . . . . . 1 1 . . . . 3 . 2 . . . . . 1 . 1 2 1 . . . Hackware 1 | . . . . . . . . . . . . 1 . . . . . . . . . . . . . . . . Protection 6 | . . . . . . . 3 1 . . . . . . 1 . . . . . . . . 1 . . . . Artifact 4 | . . . . . . . . . . . . . . . . . . . . . . . 1 2 . . . 1 Weapon 167 | 1 3 . 6 2 . 3 2 7 2 10 3 12 20 7 1 1 . 2 . . 9 2 16 20 3 12 15 8 Energy Gun 25 | 1 . . . . . . . . . 2 2 1 6 . . . . 1 . . 1 1 6 3 . . . 1 Energy Cannon 84 | . 2 . 1 1 . 1 1 2 . 4 . 2 7 2 . 1 . 1 . . 3 . 8 16 3 11 12 6 Ballistic Gun 11 | . . . . . . . . . . . 1 3 1 1 1 . . . . . 2 . . . . . 2 . Ballistic Cannon 14 | . 1 . 2 . . 1 1 2 1 1 . . 2 1 . . . . . . . . 1 . . . . 1 Launcher 26 | . . . 3 1 . 1 . 3 1 3 . 5 1 2 . . . . . . 3 1 . . . 1 1 . Special Weapon 3 | . . . . . . . . . . . . 1 1 1 . . . . . . . . . . . . . . Impact Weapon 3 | . . . . . . . . . . . . . 1 . . . . . . . . . 1 1 . . . . Slashing Weapon . | . . . . . . . . . . . . . . . . . . . . . . . . . . . . . Piercing Weapon 1 | . . . . . . . . . . . . . 1 . . . . . . . . . . . . . . . Special Melee Weapon . | . . . . . . . . . . . . . . . . . . . . . . . . . . . . . Unidentified Prototypes 49 | . . . . . . . . . . . . . 9 1 . . . 4 . . 1 . 4 15 . 7 1 7 Corrupted Parts 1 | . . . . . . . . . . . . . . . . . . 1 . . . . . . . . . . System Corruption 5 | . . . . . . . . . . . . . . . . . . 5 . . . . . . . . . . Parts Lost 48 | . . . 1 . . . 3 5 . 9 . 2 4 7 . . 1 . . . 2 1 3 2 1 . . 7 Power 5 | . . . . . . . 1 . . 1 . . . 1 . . . . . . . . . 1 . . . 1 Propulsion 13 | . . . 1 . . . . 2 . 4 . . 2 2 . . 1 . . . . . 1 . . . . . Utility 18 | . . . . . . . 1 2 . 1 . 2 2 2 . . . . . . 2 . 1 1 1 . . 3 Weapon 12 | . . . . . . . 1 1 . 3 . . . 2 . . . . . . . 1 1 . . . . 3 Highest Loss Streak 7 | . . . 1 . . . 1 2 . 4 . 1 4 7 . . 1 . . . 1 1 2 1 1 . . 5 To Critical Strikes 6 | . . . . . . . . 1 . 2 . . 1 . . . . . . . . . 2 . . . . . Average Slot Usage (%) 91 | . 100 100 99 100 100 100 98 99 100 98 88 91 94 68 90 93 99 90 88 88 89 89 88 89 85 85 84 82 Engine 2 | . 14 14 4 . . . . . . 8 2 6 3 . . . . . . . . . . . . . . . Core 1 | . . . 6 11 11 11 9 9 9 . 4 . . . . . . . . . . . . . . . . . Reactor 7 | . . . . . . . . . . . . . 2 5 6 5 5 5 5 5 10 14 13 14 13 12 15 14 Treads 16 | . . . 38 44 44 44 35 36 36 35 16 14 12 1 5 5 21 13 11 11 10 9 9 8 13 13 12 12 Leg 2 | . 28 28 5 . . . . . . . . . . . . . . . . . . . . . . . . . Wheel 1 | . . . . . . . . . . . 6 7 8 6 12 11 . . . . . . . . . . . . Device 19 | . 14 14 11 11 11 11 8 9 9 15 26 24 28 14 15 16 17 17 17 17 20 22 22 23 23 25 24 23 Storage 6 | . 14 14 11 11 11 11 9 9 9 9 7 7 6 5 6 5 5 5 5 5 5 4 4 4 4 4 5 7 Processor 14 | . . . . . . . 9 8 9 9 7 7 11 20 27 29 29 29 29 29 26 23 23 19 17 17 12 12 Energy Gun 2 | . 5 . . . . . . . . 4 1 . 7 . . . . 1 5 5 7 9 7 . . . . . Energy Cannon 9 | . 11 14 11 10 11 16 16 9 9 8 7 6 3 . . 4 5 3 5 5 5 3 5 13 13 12 12 12 Ballistic Cannon 3 | . 10 14 10 11 11 5 1 8 7 4 2 . . 4 6 5 5 5 5 5 1 . . . . . . . Naked Turns . | . . . . . . . . . . . . . . . . . . . . . . . . . . . . . Heaviest Build 237 | 13 33 33 93 93 93 94 105 104 101 110 109 114 125 113 114 82 122 124 123 123 163 177 188 203 203 203 237 228 Greatest Support 265 | 20 20 20 80 80 80 80 80 80 80 80 80 40 40 40 48 48 96 160 160 160 160 160 160 175 250 245 245 265 Greatest Overweight (x) 5 | . 1 1 1 1 1 1 1 1 1 1 3 4 5 5 5 2 3 1 . . 1 1 1 1 1 . . . Average Overweight (x) . | . . 1 . 1 1 1 1 1 1 1 2 3 2 4 1 1 . . . . . 1 . . . . . . Largest Inventory Capacity 25 | 8 15 15 25 25 25 25 25 25 25 25 25 25 25 25 25 20 25 25 25 25 25 25 25 25 25 25 25 25 Average Capacity 23 | 8 12 15 17 25 25 25 25 25 25 25 25 25 25 23 23 20 22 25 25 25 25 25 25 25 25 25 25 25 Most Carried 25 | 7 15 15 25 25 25 25 25 25 25 25 25 25 25 25 25 20 25 25 25 25 25 25 25 25 25 25 25 25 Average Carried 22 | 6 11 14 16 25 25 25 24 23 24 23 24 24 24 11 15 18 21 24 25 24 24 23 24 24 24 24 24 24 Final Capacity 25 | 8 15 15 25 25 25 25 25 25 25 25 25 25 25 25 20 20 25 25 25 25 25 25 25 25 25 25 25 25 Final Carried 25 | 6 15 15 25 25 25 25 25 22 25 24 25 25 25 10 19 18 25 25 25 25 25 25 23 25 25 25 25 20 Class Distribution -------------------- 27% | Scavenger-Mutant 17% | Scavenger-Tank 16% | Scavenger-Skirmisher 14% | Mutant 8% | Skirmisher 4% | Commander-Skirmisher 3% | Generator-Gunner Dominant Class ---------------- Mutant | -10/Materials Mutant | -10/Mines Scavenger-Mutant | -9/Materials Scavenger-Mutant | -9/Mines Scavenger-Mutant | -9/Exiles Scavenger-Mutant | -8/Mines Mutant | -8/Materials Scavenger-Mutant | -8/Garrison Scavenger-Mutant | -8/Materials Scavenger-Mutant | -8/Garrison Mutant | -7/Factory Scavenger-Mutant | -7/Garrison Scavenger-Mutant | -6/Factory Skirmisher | -6/Waste Skirmisher | -6/Factory Skirmisher | -5/Factory Commander-Skirmisher | -5/Extension Commander-Skirmisher | -5/Cetus Scavenger-Skirmisher | -5/Archives Scavenger-Skirmisher | -5/Hub_04(d) Scavenger-Skirmisher | -4/Factory Scavenger-Skirmisher | -3/Research Scavenger-Skirmisher | -3/Quarantine Scavenger-Tank | -3/Section 7 Scavenger-Tank | -2/Research Scavenger-Tank | -2/Testing Generator-Gunner | -1/Access Generator-Tank | -1/Command Resources | -11 -10 -10 -9 -9 -9 -8 -8 -8 -8 -8 -7 -7 -6 -6 -6 -5 -5 -5 -5 -5 -4 -3 -3 -3 -2 -2 -1 -1 ----------- Run | Scr Mat Min Mat Min Exi Min Mat Gar Mat Gar Fac Gar Fac Was Fac Fac Ext Cet Arc Hub Fac Res Qua Sec Res Tes Acc Com Matter Collected 8027 | 220 221 122 448 63 . 102 366 168 38 444 219 442 535 531 416 80 367 262 49 115 280 297 183 881 195 230 495 258 Remotely . | . . . . . . . . . . . . . . . . . . . . . . . . . . . . . Salvage Created 24877 | 171 453 159 1015 167 . 153 714 356 192 418 82 775 1321 1127 650 37 561 271 128 238 1473 435 1243 3757 2744 935 3656 1646 Parts 977 | 11 18 5 72 17 . 13 35 18 11 20 7 33 38 5 24 4 19 8 6 13 53 16 57 156 117 43 140 18 Haulers Intercepted 4 | . . . 2 . . . . . . . . . 1 . 1 . . . . . . . . . . . . . Recyclers Shooed 8 | . . . 2 . . . . . . . . . 5 . . . . . . . 1 . . . . . . . Parts Field Recycled . | . . . . . . . . . . . . . . . . . . . . . . . . . . . . . Retrieved Matter . | . . . . . . . . . . . . . . . . . . . . . . . . . . . . . Parts Self-Destructed . | . . . . . . . . . . . . . . . . . . . . . . . . . . . . . Prevented . | . . . . . . . . . . . . . . . . . . . . . . . . . . . . . Kills | -11 -10 -10 -9 -9 -9 -8 -8 -8 -8 -8 -7 -7 -6 -6 -6 -5 -5 -5 -5 -5 -4 -3 -3 -3 -2 -2 -1 -1 ------- Run | Scr Mat Min Mat Min Exi Min Mat Gar Mat Gar Fac Gar Fac Was Fac Fac Ext Cet Arc Hub Fac Res Qua Sec Res Tes Acc Com Combat Hostiles Destroyed 390 | . 10 2 29 10 . 7 11 14 5 9 1 26 14 6 7 . 9 4 2 2 28 4 15 55 32 11 49 28 Guns 44 | . 3 . . . . . . . . 2 . 4 4 1 3 . 4 2 . . 10 2 8 . . . 1 . Cannons 238 | . 7 2 23 7 . 5 10 6 3 6 . 6 4 3 4 . 3 2 2 2 8 . 3 46 27 10 34 15 AOE 68 | . . . 6 3 . 2 . 8 2 1 . 16 4 2 . . . . . . 8 1 . 1 . . 9 5 Classes Destroyed 23 | 2 2 . 4 . . 1 . 1 . 1 . 1 3 1 1 . . . 1 1 . . 1 2 . . . 1 Worker 4 | . . . . . . . . . . . . . . . . . . . . 2 . . 1 . 1 . . . Builder 4 | . . . . . . . . . . . . . . . 1 . . . . . 1 . . 1 . . 1 . Tunneler 5 | 5 . . . . . . . . . . . . . . . . . . . . . . . . . . . . Hauler 4 | . . . 2 . . . . . . . . . 1 . 1 . . . . . . . . . . . . . Recycler 15 | 1 1 1 1 . . 1 1 . . . . . 3 . 2 . 1 . . . 1 1 . . 1 . . . Carrier 1 | . . . . . . . . . . . . . 1 . . . . . . . . . . . . . . . Mechanic 2 | . . . . . . . . . . . . . 1 . . . . . . . . . . . . . 1 . Operator 6 | . . . . . . . . . . . . . . . . . . . 1 1 . . 1 1 . . 1 1 Watcher 24 | . 1 . 2 . . . 1 . . . 1 . 3 . . 1 2 . . . 2 1 1 3 1 2 3 . Swarmer 58 | . . . 8 7 . 6 . 4 . . . 7 . . . . 3 . . . 8 . . 10 . . 5 . Grunt 120 | . 10 2 14 3 . . 7 8 2 1 . 12 1 . 5 . 3 1 . . 9 3 3 6 12 4 14 . Brawler 8 | . . . . . . . . 1 1 . . 2 . . . . . . . . . . . . 1 1 2 . Duelist 10 | . . . 1 . . . . 1 . . . 2 1 . 1 . . . . . 2 . . . . . 2 . Protector 2 | . . . . . . . . . . . . . 1 . . . . . . . . . . . . . 1 . Sentry 48 | . . . 6 . . . 3 . 2 5 . 1 4 . . . 3 . 2 2 . 1 . 7 5 . 6 1 Specialist 5 | . . . . . . . . . . . . . . . . . . . . . . . 3 2 . . . . Hunter 43 | . . . . . . 1 1 . . 2 1 1 3 . . . . . . . 5 . 7 6 4 2 10 . Programmer 51 | . . . . . . . . . . . . 1 4 . 1 . . . . . 4 . 2 17 9 4 9 . Heavy 1 | . . . . . . . . . . . . . . . . . . . . . . . . 1 . . . . Behemoth 3 | . . . . . . . . . . 1 . . . . . . . . . . . . . 1 1 . . . Compactor 6 | . . . . . . . . . . . . . . 6 . . . . . . . . . . . . . . Cetus Guard 3 | . . . . . . . . . . . . . . . . . . 3 . . . . . . . . . . S7 Guard 3 | . . . . . . . . . . . . . . . . . . . . . . . . 3 . . . . Enhanced Q-Series 26 | . . . . . . . . . . . . . . . . . . . . . . . . . . . . 26 Executioner 2 | . . . . . . . . . . . . . . . . . . . . . . . . 2 . . . . Thug 1 | . . . . . . . . . . . . . . . . . . 1 . . . . . . . . . . Guerrilla 1 | . . . . . . . . . . . . . . . . . . . . 1 . . . . . . . . Best Kill Streak 13 | 4 3 2 6 5 . 3 3 7 2 3 1 9 10 2 4 1 2 2 2 2 8 4 5 5 6 2 12 13 Combat Bots Only 13 | . 3 2 6 4 . 3 3 7 2 3 1 9 6 2 3 . 2 2 2 1 6 3 4 5 5 2 11 13 Max Kills in Single Turn 6 | 1 1 1 3 3 . 2 2 2 1 1 1 3 6 1 2 1 2 1 1 3 3 1 2 2 2 1 4 2 Gunslinging . | . . . . . . . . . . . . . . . . . . . . . . . . . . . . . Exploded 4 | . . . 3 2 . 2 . 2 1 1 . 3 4 1 . . . . . . 3 1 . 1 . . 4 1 Melee . | . . . . . . . . . . . . . . . . . . . . . . . . . . . . . Uniques/NPCs Destroyed 1 | . . . . . . . . . . . . . . . . . . . . . . . . . . . . 1 MAIN.C Shell (-1/Command) Combat | -11 -10 -10 -9 -9 -9 -8 -8 -8 -8 -8 -7 -7 -6 -6 -6 -5 -5 -5 -5 -5 -4 -3 -3 -3 -2 -2 -1 -1 -------- Run | Scr Mat Min Mat Min Exi Min Mat Gar Mat Gar Fac Gar Fac Was Fac Fac Ext Cet Arc Hub Fac Res Qua Sec Res Tes Acc Com Damage Taken 16982 | . 125 50 524 104 . 67 476 590 299 1043 88 773 859 460 302 . 164 250 129 156 1141 112 719 2337 1071 451 1476 3216 Core 2437 | . 26 . 77 16 . 5 30 63 13 115 18 119 81 108 22 . 34 31 25 28 145 14 108 674 188 16 73 408 Absorbed by Shields 7037 | . . . . . . . . . . 25 24 9 72 . . . 7 32 . . 641 123 741 2282 901 388 1394 398 Redirected to Core 504 | . . . . . . . . . . . . . . . . . . . . . . . 30 349 125 . . . Regen/Repaired (Parts) 2598 | . . . . . . . . . . . . . . . . 416 . . . . . . . 1350 . 832 . . Core Remaining (%) 75 | 100 . 89 . . . 75 . . . 59 . 80 . . 75 . . . . 88 87 . . 30 . 79 . 65 Volleys Fired 983 | 15 30 6 65 11 . 8 37 26 19 38 8 39 50 38 22 2 26 15 16 7 54 17 39 147 59 26 82 81 Largest 4 | 2 2 2 2 2 . 2 2 2 2 2 2 2 2 2 2 3 3 3 3 3 3 3 3 3 3 3 4 4 Hottest 454 | 80 120 99 99 99 . 116 116 99 99 124 121 105 180 128 98 188 188 188 230 230 258 240 276 308 353 360 454 454 Shots Fired 2311 | 30 60 12 129 22 . 15 72 49 36 71 16 76 97 71 48 5 76 43 20 14 143 43 100 388 160 74 238 203 Gun 455 | 30 12 . . . . . . . . 13 7 18 54 25 25 1 26 17 5 4 86 39 61 5 . . 15 12 Cannon 1786 | . 48 12 127 20 . 14 72 43 34 55 9 33 42 27 23 4 50 26 15 10 51 1 39 383 160 74 223 191 Launcher 68 | . . . 2 2 . 1 . 6 2 3 . 25 . 18 . . . . . . 6 3 . . . . . . Special 2 | . . . . . . . . . . . . . 1 1 . . . . . . . . . . . . . . Kinetic 431 | . 22 6 63 11 . 1 5 23 17 24 2 16 6 44 48 3 52 30 12 6 25 . . . . . 15 . Thermal 1675 | 25 38 6 64 9 . 7 37 20 17 44 8 33 90 8 . 2 24 13 8 8 104 39 75 362 160 74 213 187 Explosive 68 | . . . 2 2 . 1 . 6 2 3 . 25 . 18 . . . . . . 6 3 . . . . . . Electromagnetic 123 | 5 . . . . . 6 30 . . . 6 2 . . . . . . . . 8 1 25 26 . . 10 4 Slashing 12 | . . . . . . . . . . . . . . . . . . . . . . . . . . . . 12 Robot Hit Streak 59 | 11 28 8 26 18 . 26 33 20 14 25 12 19 28 30 18 19 24 18 29 9 24 24 59 56 22 17 23 36 Robot Miss Streak 4 | 2 4 1 4 . . 1 1 2 2 2 1 4 3 1 2 . 2 1 1 1 2 1 2 2 3 2 2 1 Penetration Max 1 | . . . . . . . . . . . . . . . 1 . 1 . . . 1 . . . . . 1 . Secondary Targets 3 | . . . . . . . . . . . . . . . . . . . . . . . 3 . . . . . Max Gunslinging Chain 1 | . . . . . . . . . . . . . . . . . . . . . . . 1 . . . . . Shots Hit Robots 1652 | 23 46 8 86 16 . 10 57 40 30 58 16 57 78 67 37 1 59 33 19 8 103 30 80 242 108 48 137 155 Core Hits 791 | 7 18 4 43 11 . 9 22 22 11 20 3 52 30 19 18 1 20 15 10 11 62 16 34 116 57 20 82 58 Critical Kills 33 | . . . . . . . 1 . . . . . 1 . 2 . 2 1 . . . . . 8 4 1 5 8 Critical Parts Destroyed 3 | . . . . . . . . . . . . . . . 1 . 2 . . . . . . . . . . . Critical Strikes 60 | . . . 1 . . . 2 1 1 2 . . 10 2 4 . 6 1 1 1 2 . . 8 4 1 5 8 Burn 10 | . . . . . . . . . . 1 . . 9 . . . . . . . . . . . . . . . Meltdown 29 | . . . . . . . 1 . . . . . 1 . . . 1 . . . . . . 8 4 1 5 8 Destroy 8 | . . . . . . . . . . . . . . 1 3 . 3 1 . . . . . . . . . . Blast 13 | . . . 1 . . . 1 1 1 1 . . . 1 1 . 2 . 1 1 2 . . . . . . . Melee Attacks 3 | . . . . . . . . . . . . . 3 . . . . . . . . . . . . . . . Impact 3 | . . . . . . . . . . . . . 3 . . . . . . . . . . . . . . . Slashing . | . . . . . . . . . . . . . . . . . . . . . . . . . . . . . Piercing . | . . . . . . . . . . . . . . . . . . . . . . . . . . . . . Sneak Attacks . | . . . . . . . . . . . . . . . . . . . . . . . . . . . . . Combat Hostiles . | . . . . . . . . . . . . . . . . . . . . . . . . . . . . . Follow-up Attacks . | . . . . . . . . . . . . . . . . . . . . . . . . . . . . . Damage Inflicted 76126 | 261 823 159 1970 531 . 367 1373 1441 652 1378 332 3128 3625 3809 1193 33 2192 1070 696 746 4596 1194 2808 9374 4862 2183 9005 16325 Guns 10051 | 261 117 . . . . . . . . 195 129 272 1538 643 547 . 664 421 134 51 2056 793 1584 73 . . 237 336 Cannons 50753 | . 706 159 1704 284 . 167 1373 740 552 981 203 681 1035 912 646 33 1528 649 562 225 1510 68 1224 9005 4862 2183 6803 11958 Explosions 15261 | . . . 266 247 . 200 . 701 100 195 . 2175 1044 2254 . . . . . 470 1030 333 . 296 . . 1919 4031 Melee . | . . . . . . . . . . . . . . . . . . . . . . . . . . . . . Ramming 61 | . . . . . . . . . . 7 . . 8 . . . . . . . . . . . . . 46 . Kinetic 9013 | . 347 87 886 125 . . 62 353 289 393 65 243 108 1332 1193 . 1440 690 454 109 600 . . . . . 237 . Thermal 55338 | 208 476 72 818 159 . 129 641 387 263 783 169 681 3509 223 . 33 752 380 242 167 3074 793 1884 8256 4862 2183 8362 15832 Explosive 7313 | . . . 266 247 . 157 . 701 100 195 . 2175 . 2254 . . . . . . 589 333 . 296 . . . . Electromagnetic 4065 | 53 . . . . . 81 670 . . . 98 29 . . . . . . . 470 333 68 924 822 . . 360 157 Impact . | . . . . . . . . . . . . . . . . . . . . . . . . . . . . . Slashing 336 | . . . . . . . . . . . . . . . . . . . . . . . . . . . . 336 Piercing . | . . . . . . . . . . . . . . . . . . . . . . . . . . . . . Highest Corruption 25 | . . . . . . . . 4 4 4 . . 1 25 25 . . 5 5 1 2 . 2 5 . . . . Average Corruption 5 | . . . . . . . . 3 4 4 . . 1 15 25 . . 5 4 1 1 . 1 2 . . . . Corruption Purged 14 | . . . . . . . . . . . . . . . . . . . 5 . . . . 9 . . . . Corruption Blocked . | . . . . . . . . . . . . . . . . . . . . . . . . . . . . . Effects 188 | . . . . . . . . 13 5 23 . . 3 19 34 . . 8 4 . 15 . 13 51 . . . . Message Errors 51 | . . . . . . . . 3 . 10 . . . 5 7 . . 3 1 . 4 . 4 14 . . . . Matter Fused 48 | . . . . . . . . 4 3 6 . . . 4 5 . . 2 2 . 3 . 3 16 . . . . Heat Flow Errors 19 | . . . . . . . . 3 . 1 . . . 4 5 . . . . . 1 . 2 3 . . . . Energy Discharges 26 | . . . . . . . . 1 1 . . . 2 2 7 . . . . . 3 . 3 7 . . . . Data Loss (minor) 14 | . . . . . . . . . . 3 . . 1 1 2 . . 2 . . 1 . . 4 . . . . Data Loss (major) 12 | . . . . . . . . 2 1 2 . . . 2 . . . . . . 1 . 1 3 . . . . Misfires 12 | . . . . . . . . . . . . . . 1 5 . . 1 1 . 2 . . 2 . . . . Alerts 3 | . . . . . . . . . . 1 . . . . 1 . . . . . . . . 1 . . . . Misdirections 1 | . . . . . . . . . . . . . . . 1 . . . . . . . . . . . . . Weapon Failures 2 | . . . . . . . . . . . . . . . 1 . . . . . . . . 1 . . . . Overload Shots . | . . . . . . . . . . . . . . . . . . . . . . . . . . . . . Overflow Damage 2099 | . 6 . 4 13 . . . 47 9 . . 85 329 30 1 . 9 . . . 105 . 19 207 95 108 310 722 Projectiles 1299 | . 6 . 4 . . . . 10 9 . . 43 38 . 1 . 9 . . . 48 . 19 207 95 108 184 518 Explosions 794 | . . . . 13 . . . 37 . . . 42 291 30 . . . . . . 57 . . . . . 120 204 Melee 6 | . . . . . . . . . . . . . . . . . . . . . . . . . . . 6 . Knockbacks 30 | . 3 . 4 3 . . 1 5 3 . . . . . 3 . 4 2 . . 2 . . . . . . . Impact . | . . . . . . . . . . . . . . . . . . . . . . . . . . . . . Kinetic 28 | . 3 . 4 2 . . 1 5 3 . . . . . 3 . 3 2 . . 2 . . . . . . . Secondary 2 | . . . . 1 . . . . . . . . . . . . 1 . . . . . . . . . . . Self-Inflicted Damage 1258 | . . . 4 7 . . . 32 . 15 . 181 85 300 . . . . . 84 288 . . 152 . . 69 41 Shots 39 | . . . 1 1 . . . 1 . 1 . 8 2 12 . . . . . 1 6 . . 2 . . 2 2 Rammed 4 | . . . . . . . 1 . . 1 . . 1 . . . . . . . . . . . . . 1 . Targets Rammed 4 | . . . . . . . 1 . . 1 . . 1 . . . . . . . . . . . . . 1 . Kicked . | . . . . . . . . . . . . . . . . . . . . . . . . . . . . . Crushed . | . . . . . . . . . . . . . . . . . . . . . . . . . . . . . Highest Temperature 418 | 144 147 42 37 30 . 18 234 200 36 114 16 16 197 340 342 36 135 185 81 102 234 418 209 374 16 65 150 368 Average Temperature 72 | 51 36 32 13 20 . 10 71 57 17 25 12 11 91 149 106 24 43 75 25 37 81 135 27 83 5 14 39 109 Received Heat Transfer 3799 | . 111 57 300 51 . . 315 423 180 244 . 180 209 . 243 . 84 81 . 9 130 55 76 167 214 52 123 495 Effects 7 | . . . . . . . . . . . . . . . 2 . . . . . . 1 . 4 . . . . Shutdowns 2 | . . . . . . . . . . . . . . . . . . . . . . 1 . 1 . . . . Interference 5 | . . . . . . . . . . . . . . . 2 . . . . . . . . 3 . . . . Siege Activations . | . . . . . . . . . . . . . . . . . . . . . . . . . . . . . Robots Corrupted 6 | . . . . . . . . . . . 1 . . . . . . . . . 1 . 4 . . . . . Combat Hostiles 6 | . . . . . . . . . . . 1 . . . . . . . . . 1 . 4 . . . . . Parts Fried 34 | . . . . . . . 1 . . . 1 . . . . . . . . 2 4 . 10 12 . . 2 2 Impact Corruptions 2 | . . . . . . . . . . . . . . . . . 1 . . . . . . . . . 1 . Robots Melted 35 | . . . . . . . 1 . . . . . 3 . . . 2 . . . 1 1 . 8 5 1 5 8 Combat Hostiles 34 | . . . . . . . 1 . . . . . 2 . . . 2 . . . 1 1 . 8 5 1 5 8 Parts Melted 132 | 2 . . 1 . . . 2 . . 5 . 1 18 . . . 2 . 1 . 7 2 4 37 17 3 24 6 Heat Transferred 52746 | 475 990 148 1702 333 . 235 1036 629 555 1438 296 999 5117 350 . 50 1125 574 148 74 2522 999 2361 9589 4107 1813 6207 8874 Parts Sabotaged . | . . . . . . . . . . . . . . . . . . . . . . . . . . . . . Parts Stolen . | . . . . . . . . . . . . . . . . . . . . . . . . . . . . . Parts Stripped . | . . . . . . . . . . . . . . . . . . . . . . . . . . . . . Power Chain Reactions 2 | . . . . . . . . . . . . . . . . . . . . 1 1 . . . . . . . Missiles Intercepted . | . . . . . . . . . . . . . . . . . . . . . . . . . . . . . Alert | -11 -10 -10 -9 -9 -9 -8 -8 -8 -8 -8 -7 -7 -6 -6 -6 -5 -5 -5 -5 -5 -4 -3 -3 -3 -2 -2 -1 -1 ------- Run | Scr Mat Min Mat Min Exi Min Mat Gar Mat Gar Fac Gar Fac Was Fac Fac Ext Cet Arc Hub Fac Res Qua Sec Res Tes Acc Com Peak Influence 1173 | 30 164 89 465 381 . 244 205 467 286 525 339 841 436 36 142 72 211 444 251 214 940 239 354 314 487 226 1173 745 Initial 659 | . 16 19 . 40 . . 14 94 195 131 238 85 382 25 . 59 . 99 149 . 90 211 89 2 153 202 . 659 Average 207 | 17 60 38 229 233 . 85 88 316 207 257 274 537 215 3 42 53 74 210 132 39 444 174 191 103 260 118 565 490 Maximum Alert Level 4 | . . . 2 1 . 1 1 2 1 2 1 3 2 . . . 1 2 1 1 3 1 1 1 2 1 4 3 Low Security (%) 60 | 100 100 100 30 57 . 91 98 12 70 36 12 22 51 100 100 100 89 60 59 97 14 36 66 87 34 83 13 53 Level 1 25 | . . . 62 42 . 8 1 53 29 44 87 15 41 . . . 10 29 40 2 17 63 33 12 49 16 25 . Level 2 10 | . . . 7 . . . . 33 . 19 . 25 6 . . . . 10 . . 59 . . . 16 . 29 33 Level 3 3 | . . . . . . . . . . . . 36 . . . . . . . . 7 . . . . . 24 12 Level 4 . | . . . . . . . . . . . . . . . . . . . . . . . . . . . 6 . Level 5 . | . . . . . . . . . . . . . . . . . . . . . . . . . . . . . High Security . | . . . . . . . . . . . . . . . . . . . . . . . . . . . . . Max Security . | . . . . . . . . . . . . . . . . . . . . . . . . . . . . . Squads Dispatched 51 | . 2 . 5 . . . . . 1 . 2 . 2 . 1 1 . . . 2 3 2 3 9 4 6 8 . Investigation 7 | . 2 . 2 . . . . . . . . . . . 1 . . . . . . . 1 . 1 . . . Extermination 20 | . . . . . . . . . . . 1 . 1 . . 1 . . . . 2 . 1 6 3 2 3 . Reinforcement 14 | . . . 3 . . . . . . . 1 . 1 . . . . . . 2 . 2 1 3 . . 1 . Assault 6 | . . . . . . . . . . . . . . . . . . . . . 1 . . . . 1 4 . Garrison 4 | . . . . . . . . . 1 . . . . . . . . . . . . . . . . 3 . . Intercept . | . . . . . . . . . . . . . . . . . . . . . . . . . . . . . Searches Triggered . | . . . . . . . . . . . . . . . . . . . . . . . . . . . . . Construction Impeded 1 | . . . . . . . . . . . . . 1 . . . . . . . . . . . . . . . Haulers Reinforced . | . . . . . . . . . . . . . . . . . . . . . . . . . . . . . Active Scanning Responses . | . . . . . . . . . . . . . . . . . . . . . . . . . . . . . Cargo Convoy Interrupts 1 | . . . . . . . . . . . . . 1 . . . . . . . . . . . . . . . Stealth | -11 -10 -10 -9 -9 -9 -8 -8 -8 -8 -8 -7 -7 -6 -6 -6 -5 -5 -5 -5 -5 -4 -3 -3 -3 -2 -2 -1 -1 --------- Run | Scr Mat Min Mat Min Exi Min Mat Gar Mat Gar Fac Gar Fac Was Fac Fac Ext Cet Arc Hub Fac Res Qua Sec Res Tes Acc Com Distress Signals 28 | . 1 . 3 . . . 3 . 2 . . . 1 . . . . 2 . . . . 1 4 2 1 3 5 Communications Jammed . | . . . . . . . . . . . . . . . . . . . . . . . . . . . . . Distress Signals . | . . . . . . . . . . . . . . . . . . . . . . . . . . . . . Times Spotted 564 | . 22 2 45 10 . 8 17 15 7 17 3 28 18 6 7 . 23 15 8 6 45 8 22 69 38 17 68 40 Peak Tracking Total 9 | . 4 2 5 4 . 3 4 7 3 5 2 8 4 3 3 1 5 5 2 2 6 4 5 6 5 2 9 9 Tactical Retreats 19 | . 1 . 1 . . 1 4 . . . . 3 . . . . 1 . . . 1 . 1 2 2 1 1 . Traps | -11 -10 -10 -9 -9 -9 -8 -8 -8 -8 -8 -7 -7 -6 -6 -6 -5 -5 -5 -5 -5 -4 -3 -3 -3 -2 -2 -1 -1 ------- Run | Scr Mat Min Mat Min Exi Min Mat Gar Mat Gar Fac Gar Fac Was Fac Fac Ext Cet Arc Hub Fac Res Qua Sec Res Tes Acc Com Traps Triggered 26 | . . . 1 . . . 2 2 . 3 2 5 1 . 1 . . . . . 2 . . 1 2 1 3 . Indirectly . | . . . . . . . . . . . . . . . . . . . . . . . . . . . . . Trap Hack Attempts . | . . . . . . . . . . . . . . . . . . . . . . . . . . . . . Triggered . | . . . . . . . . . . . . . . . . . . . . . . . . . . . . . Disarmed . | . . . . . . . . . . . . . . . . . . . . . . . . . . . . . Reprogrammed 4 | . . . . . . . . . . . . . . . . . . . . . . . 4 . . . . . Reused 1 | . . . . . . . . . . . . . . . . . . . . . . . 1 . . . . . Traps Extracted . | . . . . . . . . . . . . . . . . . . . . . . . . . . . . . Installed . | . . . . . . . . . . . . . . . . . . . . . . . . . . . . . Triggered 1 | . . . . . . . . . . . . . . . . . . . . . . . 1 . . . . . Machines | -11 -10 -10 -9 -9 -9 -8 -8 -8 -8 -8 -7 -7 -6 -6 -6 -5 -5 -5 -5 -5 -4 -3 -3 -3 -2 -2 -1 -1 ---------- Run | Scr Mat Min Mat Min Exi Min Mat Gar Mat Gar Fac Gar Fac Was Fac Fac Ext Cet Arc Hub Fac Res Qua Sec Res Tes Acc Com Machines Disabled 78 | . . . 1 1 . 3 . . . 1 . 2 7 . . . 3 . 1 4 20 . 3 19 5 4 4 . Max in Single Turn 5 | . . . 1 1 . 3 . . . 1 . 1 5 . . . 1 . . 3 5 . 1 1 1 1 1 . Garrison Access 6 | . . . . . . . . . . . . . 1 . . 1 . . . 1 1 . . 1 . . 1 . Garrison Relay 3 | . . . . . . . . . . 1 . 2 . . . . . . . . . . . . . . . . Network Hub 1 | . . . . . . . . . . . . . . . . . . . . 1 . . . . . . . . Energy Cycler 1 | . . . . . . . . . . . . . . . . . . . . . . . . . . . 1 . Machines Sabotaged . | . . . . . . . . . . . . . . . . . . . . . . . . . . . . . Garrisons Compromised . | . . . . . . . . . . . . . . . . . . . . . . . . . . . . . Overloaded Fab Kills . | . . . . . . . . . . . . . . . . . . . . . . . . . . . . . Hacking | -11 -10 -10 -9 -9 -9 -8 -8 -8 -8 -8 -7 -7 -6 -6 -6 -5 -5 -5 -5 -5 -4 -3 -3 -3 -2 -2 -1 -1 --------- Run | Scr Mat Min Mat Min Exi Min Mat Gar Mat Gar Fac Gar Fac Was Fac Fac Ext Cet Arc Hub Fac Res Qua Sec Res Tes Acc Com Machines Accessed 93 | . 8 . 7 . . . 4 . 2 . 1 . 6 . 3 4 7 . . 4 7 1 4 15 5 6 7 2 Terminals 71 | . 7 . 6 . . . 3 . 1 . . . 4 . 1 1 7 . . 3 3 1 4 12 5 5 6 2 Fabricators 4 | . . . . . . . . . . . . . . . 2 . . . . . 2 . . . . . . . Repair Stations 2 | . . . . . . . . . . . . . . . . 2 . . . . . . . . . . . . Recycling Units 4 | . 1 . 1 . . . . . . . . . 1 . . . . . . . 1 . . . . . . . Scanalyzers 3 | . . . . . . . . . . . . . . . . . . . . . . . . 2 . 1 . . Garrison Access 9 | . . . . . . . 1 . 1 . 1 . 1 . . 1 . . . 1 1 . . 1 . . 1 . Total Hacks 231 | . 25 . 16 . . . 14 . 6 . 1 . 16 . 7 9 11 . . 7 21 3 13 28 17 19 14 4 Successful 107 | . 11 . 9 . . . 8 . 2 . 1 . 8 . 3 4 4 . . 2 11 1 8 15 5 11 4 . Failed 123 | . 13 . 7 . . . 6 . 4 . . . 8 . 4 5 7 . . 5 10 2 5 13 12 8 10 4 Catastrophic 24 | . . . . . . . 2 . 1 . . . 2 . 1 . 1 . . . 1 1 1 5 4 2 2 1 Database Lockouts 1 | . 1 . . . . . . . . . . . . . . . . . . . . . . . . . . . Manual 71 | . 14 . 6 . . . 11 . 5 . . . 3 . . 2 3 1 . . 5 2 4 4 . 8 1 2 Terminals 190 | . 23 . 15 . . . 13 . 5 . . . 13 . 2 2 11 . . 6 14 3 13 19 17 17 13 4 Fabricators 9 | . . . . . . . . . . . . . . . 5 . . . . . 4 . . . . . . . Repair Stations 6 | . . . . . . . . . . . . . . . . 6 . . . . . . . . . . . . Recycling Units 7 | . 2 . 1 . . . . . . . . . 2 . . . . . . . 2 . . . . . . . Scanalyzers 10 | . . . . . . . . . . . . . . . . . . . . . . . . 8 . 2 . . Garrison Access 9 | . . . . . . . 1 . 1 . 1 . 1 . . 1 . . . 1 1 . . 1 . . 1 . Terminal Hacks 66 | . 10 . 6 . . . 4 . 1 . . . 6 . . . 4 . . 1 5 1 7 6 5 7 3 . Record 2 | . . . . . . . . . . . . . . . . . . . . . . . 2 . . . . . Part Schematic 1 | . 1 . . . . . . . . . . . . . . . . . . . . . . . . . . . Robot Schematic 1 | . . . . . . . . . . . . . 1 . . . . . . . . . . . . . . . Robot Analysis 2 | . 1 . 1 . . . . . . . . . . . . . . . . . . . . . . . . . Prototype ID Bank 2 | . 1 . 1 . . . . . . . . . . . . . . . . . . . . . . . . . Open Door 9 | . . . . . . . . . . . . . . . . . 4 . . . . . . 5 . . . . Level Access Points 4 | . . . . . . . . . . . . . 1 . . . . . . . 1 . 1 . . 1 . . Branch Access Points 2 | . . . . . . . . . . . . . . . . . . . . . . 1 . . 1 . . . Machine Index 2 | . . . . . . . . . . . . . . . . . . . . . . . . . 1 1 . . Terminal Index 4 | . . . . . . . 1 . . . . . 1 . . . . . . . . . . . 1 . 1 . Garrison Index 1 | . . . . . . . 1 . . . . . . . . . . . . . . . . . . . . . Alert Level 1 | . . . 1 . . . . . . . . . . . . . . . . . . . . . . . . . Unreport Threat 17 | . 2 . 1 . . . 1 . 1 . . . 1 . . . . . . . 3 . . 1 2 4 1 . Locate Traps 10 | . 3 . 2 . . . 1 . . . . . 1 . . . . . . . . . 2 . . 1 . . Reprogram Traps 1 | . . . . . . . . . . . . . . . . . . . . . . . 1 . . . . . Hauler Manifests 1 | . 1 . . . . . . . . . . . . . . . . . . . . . . . . . . . Registered Components 1 | . 1 . . . . . . . . . . . . . . . . . . . . . . . . . . . Zone Layout 5 | . . . . . . . . . . . . . 1 . . . . . . 1 1 . 1 . . . 1 . Fabricator Hacks 3 | . . . . . . . . . . . . . . . 3 . . . . . . . . . . . . . Load Schematic 2 | . . . . . . . . . . . . . . . 2 . . . . . . . . . . . . . Build 1 | . . . . . . . . . . . . . . . 1 . . . . . . . . . . . . . Repair Station Hacks 3 | . . . . . . . . . . . . . . . . 3 . . . . . . . . . . . . Scan Component 2 | . . . . . . . . . . . . . . . . 2 . . . . . . . . . . . . Repair 1 | . . . . . . . . . . . . . . . . 1 . . . . . . . . . . . . Recycling Unit Hacks 4 | . 1 . 1 . . . . . . . . . 1 . . . . . . . 1 . . . . . . . Retrieve Components 4 | . 1 . 1 . . . . . . . . . 1 . . . . . . . 1 . . . . . . . Scanalyzer 9 | . . . . . . . . . . . . . . . . . . . . . . . . 7 . 2 . . Insert Component 9 | . . . . . . . . . . . . . . . . . . . . . . . . 7 . 2 . . Garrison Access Hacks 9 | . . . . . . . 1 . 1 . 1 . 1 . . 1 . . . 1 1 . . 1 . . 1 . Unlock Access 3 | . . . . . . . 1 . 1 . 1 . . . . . . . . . . . . . . . . . Seal Access 6 | . . . . . . . . . . . . . 1 . . 1 . . . 1 1 . . 1 . . 1 . Unauthorized Hacks 13 | . . . 2 . . . 3 . . . . . . . . . . . . . 4 . 1 1 . 2 . . Terminals 11 | . . . 2 . . . 3 . . . . . . . . . . . . . 2 . 1 1 . 2 . . Track 1 | . . . 1 . . . . . . . . . . . . . . . . . . . . . . . . . Botnet 6 | . . . . . . . 2 . . . . . . . . . . . . . 1 . 1 1 . 1 . . Disrupt 1 | . . . 1 . . . . . . . . . . . . . . . . . . . . . . . . . Operators 3 | . . . . . . . 1 . . . . . . . . . . . . . 1 . . . . 1 . . Fabricators 1 | . . . . . . . . . . . . . . . . . . . . . 1 . . . . . . . Liberate 1 | . . . . . . . . . . . . . . . . . . . . . 1 . . . . . . . Repair Stations . | . . . . . . . . . . . . . . . . . . . . . . . . . . . . . Recycling Units 1 | . . . . . . . . . . . . . . . . . . . . . 1 . . . . . . . Mask 1 | . . . . . . . . . . . . . . . . . . . . . 1 . . . . . . . Scanalyzers . | . . . . . . . . . . . . . . . . . . . . . . . . . . . . . Garrison Access . | . . . . . . . . . . . . . . . . . . . . . . . . . . . . . Data Cores Recovered 2 | . . . . . . . . . . . . . . . . . . . . 1 . . 1 . . . . . Used . | . . . . . . . . . . . . . . . . . . . . . . . . . . . . . Hacking Detections 74 | . 8 . 6 . . . 3 . 1 . 1 . 5 . 3 3 6 . . 3 5 1 3 8 5 5 6 2 Full Trace Events 5 | . 2 . 1 . . . . . . . . . . . 1 . . . . . . . 1 . . . . . Feedback Events 1 | . . . . . . . . . . . . . . . . . . . . . . . 1 . . . . . Corruption 1 | . . . . . . . . . . . . . . . . . . . . . . . 1 . . . . . Feedback Blocked . | . . . . . . . . . . . . . . . . . . . . . . . . . . . . . Robot Schematics Acquired 1 | . . . . . . . . . . . . . 1 . . . . . . . . . . . . . . . Robots Built 3 | . . . . . . . . . . . . . . . 3 . . . . . . . . . . . . . Authchips . | . . . . . . . . . . . . . . . . . . . . . . . . . . . . . Time 50 | . . . . . . . . . . . . . . . 50 . . . . . . . . . . . . . Total Robot Build Rating 15 | . . . . . . . . . . . . . . . 15 . . . . . . . . . . . . . Part Schematics Acquired 1 | . 1 . . . . . . . . . . . . . . . . . . . . . . . . . . . Parts Built . | . . . . . . . . . . . . . . . . . . . . . . . . . . . . . Authchips . | . . . . . . . . . . . . . . . . . . . . . . . . . . . . . Time . | . . . . . . . . . . . . . . . . . . . . . . . . . . . . . Total Part Build Rating . | . . . . . . . . . . . . . . . . . . . . . . . . . . . . . Parts Repaired 1 | . . . . . . . . . . . . . . . . 1 . . . . . . . . . . . . Time 26 | . . . . . . . . . . . . . . . . 26 . . . . . . . . . . . . Parts Recycled . | . . . . . . . . . . . . . . . . . . . . . . . . . . . . . Recycled Matter . | . . . . . . . . . . . . . . . . . . . . . . . . . . . . . Retrieved Matter . | . . . . . . . . . . . . . . . . . . . . . . . . . . . . . Retrieved Components 25 | . 1 . 9 . . . . . . . . . 6 . . . . . . . 9 . . . . . . . Parts Scanalyzed . | . . . . . . . . . . . . . . . . . . . . . . . . . . . . . Part Schematics Acquired . | . . . . . . . . . . . . . . . . . . . . . . . . . . . . . Parts Damaged . | . . . . . . . . . . . . . . . . . . . . . . . . . . . . . Bothacking | -11 -10 -10 -9 -9 -9 -8 -8 -8 -8 -8 -7 -7 -6 -6 -6 -5 -5 -5 -5 -5 -4 -3 -3 -3 -2 -2 -1 -1 ------------ Run | Scr Mat Min Mat Min Exi Min Mat Gar Mat Gar Fac Gar Fac Was Fac Fac Ext Cet Arc Hub Fac Res Qua Sec Res Tes Acc Com Used RIF Installer 3 | . . . . . . . . 1 . 1 . 1 . . . . . . . . . . . . . . . . Zone Cloak 1 | . . . . . . . . . . . . 1 . . . . . . . . . . . . . . . . Program Shield 1 | . . . . . . . . . . 1 . . . . . . . . . . . . . . . . . . Robots Hacked 1 | . . . . . . . . . . . . . 1 . . . . . . . . . . . . . . . Non-combat . | . . . . . . . . . . . . . . . . . . . . . . . . . . . . . Combat 1 | . . . . . . . . . . . . . 1 . . . . . . . . . . . . . . . Robot Hacks Applied 1 | . . . . . . . . . . . . . 1 . . . . . . . . . . . . . . . formatsys_high 1 | . . . . . . . . . . . . . 1 . . . . . . . . . . . . . . . Relay Couplers Released 14 | . . . . . . . . . . 4 . 10 . . . . . . . . . . . . . . . . Machine Destruction 14 | . . . . . . . . . . 4 . 10 . . . . . . . . . . . . . . . . Attached 1 | . . . . . . . . . . . . 1 . . . . . . . . . . . . . . . . Fabnet Peak Effective % . | . . . . . . . . . . . . . . . . . . . . . . . . . . . . . Robots Rewired 16 | . . . . . . . . . . 3 . . . . . . 13 . . . . . . . . . . . Allies Hacked . | . . . . . . . . . . . . . . . . . . . . . . . . . . . . . Hacks Repelled . | . . . . . . . . . . . . . . . . . . . . . . . . . . . . . Allies | -11 -10 -10 -9 -9 -9 -8 -8 -8 -8 -8 -7 -7 -6 -6 -6 -5 -5 -5 -5 -5 -4 -3 -3 -3 -2 -2 -1 -1 -------- Run | Scr Mat Min Mat Min Exi Min Mat Gar Mat Gar Fac Gar Fac Was Fac Fac Ext Cet Arc Hub Fac Res Qua Sec Res Tes Acc Com Total Allies 37 | . . 3 . . . . . . . 3 . . 1 1 3 . 18 5 . . 3 . . . . . . . Largest Group 16 | . . 3 3 . . . . . . 3 2 2 1 1 3 3 16 13 4 3 3 . . . . . . . Highest-Rated Group 599 | . . 40 40 . . . . . . 120 80 76 29 31 87 87 599 512 251 231 192 . . . . . . . Highest-Rated Ally 159 | . . 16 16 . . . . . . 40 40 40 29 31 29 29 159 152 96 96 96 . . . . . . . Total Orders 9 | . . . . . . . . . . . . . . . . . . . . . . . . . . . 9 . EXPLORE 6 | . . . . . . . . . . . . . . . . . . . . . . . . . . . 6 . RETURN 3 | . . . . . . . . . . . . . . . . . . . . . . . . . . . 3 . Ally Attacks 342 | . . . 47 . . . . . . 31 4 1 . 7 . 1 104 84 18 9 36 . . . . . . . Total Damage 7545 | . . . 444 . . . . . . 600 112 28 . 104 . . 2021 2242 493 213 1288 . . . . . . . Kills 66 | . . . 11 . . . . . . 11 1 . . . . . 16 18 2 2 5 . . . . . . . Allies Corrupted 5 | . . . . . . . . . . . . . . . . . 3 . . . 1 . . . . . 1 . Allies Melted 5 | . . . . . . . . . . . . . . . . . . 3 . . . . . . . . . 2 Intel | -11 -10 -10 -9 -9 -9 -8 -8 -8 -8 -8 -7 -7 -6 -6 -6 -5 -5 -5 -5 -5 -4 -3 -3 -3 -2 -2 -1 -1 ------- Run | Scr Mat Min Mat Min Exi Min Mat Gar Mat Gar Fac Gar Fac Was Fac Fac Ext Cet Arc Hub Fac Res Qua Sec Res Tes Acc Com Robot Analysis Total 2 | . 1 . 1 . . . . . . . . . . . . . . . . . . . . . . . . . Derelict Logs Recovered 1 | . . 1 . . . . . . . . . . . . . . . . . . . . . . . . . . Drone Launches 8 | . . . . . . . . . . . . . . . . . . . . . . . . . . . 8 . Drone Recoveries 6 | . . . . . . . . . . . . . . . . . . . . . . . . . . . 6 . Exploration | -11 -10 -10 -9 -9 -9 -8 -8 -8 -8 -8 -7 -7 -6 -6 -6 -5 -5 -5 -5 -5 -4 -3 -3 -3 -2 -2 -1 -1 ------------- Run | Scr Mat Min Mat Min Exi Min Mat Gar Mat Gar Fac Gar Fac Was Fac Fac Ext Cet Arc Hub Fac Res Qua Sec Res Tes Acc Com Turns Passed 28714 | 151 1333 692 2075 302 308 574 677 642 350 995 458 957 1698 514 671 491 1371 372 883 583 1351 627 1221 4395 1535 761 1595 1132 Spaces Moved 13065 | 61 691 349 1006 107 129 227 211 228 114 335 270 489 909 215 445 392 618 171 67 346 667 228 466 1645 909 435 828 507 Core . | . . . . . . . . . . . . . . . . . . . . . . . . . . . . . Treads 9085 | . . . 862 107 129 227 211 228 114 335 13 1 . . 4 . 587 171 67 346 667 228 466 1645 909 435 828 505 Legs 1245 | 61 691 349 144 . . . . . . . . . . . . . . . . . . . . . . . . . Wheels 2733 | . . . . . . . . . . . 257 488 909 215 441 392 31 . . . . . . . . . . . Hover . | . . . . . . . . . . . . . . . . . . . . . . . . . . . . . Flight . | . . . . . . . . . . . . . . . . . . . . . . . . . . . . . Fastest Speed 90 | 120 120 190 120 240 240 240 240 240 240 240 145 145 130 90 112 112 130 160 160 160 160 240 160 147 141 141 141 135 Average Speed 176 | 120 170 190 174 240 240 240 240 240 240 244 149 153 143 176 125 115 188 172 160 160 160 240 222 227 142 141 141 139 Slowest Speed 410 | 120 190 190 250 240 240 240 240 240 240 245 245 330 190 190 400 130 410 242 160 160 240 240 245 240 220 141 141 141 Overloaded Moves . | . . . . . . . . . . . . . . . . . . . . . . . . . . . . . Propulsion Burnouts . | . . . . . . . . . . . . . . . . . . . . . . . . . . . . . Robots Hopped . | . . . . . . . . . . . . . . . . . . . . . . . . . . . . . Cave-ins Triggered . | . . . . . . . . . . . . . . . . . . . . . . . . . . . . . Teleports 1 | . . . . . . . . . . . . . . . . . . . . . . . . . . . 1 . Spacefolds 1 | . . . . . . . . . . . . . . . . . . . . . . . . . . . . 1 Exploration Rate (%) 46 | 3 97 67 91 33 52 60 25 52 12 50 12 79 31 97 10 11 87 59 72 42 25 6 47 89 33 56 33 22 Regions Visited 28 Branch Regions 12 Pre-discovered Areas 1 | . . 1 . . . . . . . . . . . . . . . . . . . . . . . . . . Known Exits Taken 15 | . . . . . . . 1 . 1 . 1 . . . 1 1 1 1 1 1 1 1 1 1 1 1 . . Unknown Exits Taken 8 | 1 1 1 1 1 1 1 . . . . . . . . . . . . . . . . . . . . 1 . Scrap Searched 1 | . . . . . . 1 . . . . . . . . . . . . . . . . . . . . . . Spaces Dug 273 | . . . . . . . 2 . . . . . 1 . . 2 . . . 168 1 2 2 30 9 4 32 20 Terrain Destroyed 1236 | . 1 . 26 35 . 31 3 49 24 22 . 100 37 92 15 3 13 5 . 170 200 45 3 99 24 15 160 64 Melee . | . . . . . . . . . . . . . . . . . . . . . . . . . . . . . Projectile 296 | . 1 . 3 1 . . 3 . . 1 . 1 6 2 15 3 13 5 . 3 20 8 3 71 24 15 65 33 AOE 940 | . . . 23 34 . 31 . 49 24 21 . 99 31 90 . . . . . 167 180 37 . 28 . . 95 31 Terrain Rammed . | . . . . . . . . . . . . . . . . . . . . . . . . . . . . . Walls Destroyed . | . . . . . . . . . . . . . . . . . . . . . . . . . . . . . Machines Disabled . | . . . . . . . . . . . . . . . . . . . . . . . . . . . . . Actions | -11 -10 -10 -9 -9 -9 -8 -8 -8 -8 -8 -7 -7 -6 -6 -6 -5 -5 -5 -5 -5 -4 -3 -3 -3 -2 -2 -1 -1 --------- Run | Scr Mat Min Mat Min Exi Min Mat Gar Mat Gar Fac Gar Fac Was Fac Fac Ext Cet Arc Hub Fac Res Qua Sec Res Tes Acc Com Total 16723 | 108 786 368 1199 130 128 241 307 271 156 437 308 613 1198 277 513 426 769 220 824 364 825 273 575 2003 1024 528 1072 780 Wait 1557 | 30 37 8 51 11 . 2 35 . 6 18 5 22 143 7 14 26 15 3 738 2 59 19 1 66 18 6 81 134 Move 13039 | 60 690 348 1005 106 128 226 211 227 114 334 269 488 909 214 444 391 617 170 66 345 666 227 465 1644 908 434 827 506 Hop . | . . . . . . . . . . . . . . . . . . . . . . . . . . . . . Pick Up 229 | 1 12 2 28 . . . 4 2 3 10 7 3 19 6 15 3 10 10 . 5 7 4 12 26 6 7 18 9 Fast Attach 162 | . 4 . 7 . . . 5 . . 2 7 3 15 5 6 . 3 3 2 . 5 . 14 36 8 17 12 8 Attach 87 | 1 . . 2 . . . 4 5 . 8 1 1 9 1 2 3 1 . . . 4 3 5 8 2 . 17 10 Detach 16 | . . . 1 . . . . . . . . . 5 . 1 . . . . . . . 5 2 . 1 1 . Swap 195 | 1 3 1 14 2 . 4 5 7 8 10 2 13 15 4 1 . 2 4 . 1 17 2 7 24 11 10 12 15 Drop 302 | . 10 3 26 . . 1 5 . 6 6 9 4 29 2 8 1 4 15 2 4 12 1 27 50 12 27 21 17 Fire 983 | 15 30 6 65 11 . 8 37 26 19 38 8 39 50 38 22 2 26 15 16 7 54 17 39 147 59 26 82 81 Melee 3 | . . . . . . . . . . . . . 3 . . . . . . . . . . . . . . . Ram . | . . . . . . . . . . . . . . . . . . . . . . . . . . . . . Kick . | . . . . . . . . . . . . . . . . . . . . . . . . . . . . . Crush 4 | . . . . . . . 1 . . 1 . . 1 . . . . . . . . . . . . . 1 . Escape Stasis 44 | . . . . . . . . 4 . . . 40 . . . . . . . . . . . . . . . . Rewire 102 | . . . . . . . . . . 10 . . . . . . 91 . . . 1 . . . . . . . Trap . | . . . . . . . . . . . . . . . . . . . . . . . . . . . . . Miscellaneous . | . . . . . . . . . . . . . . . . . . . . . . . . . . . . . Route ------- -11/Scrapyard -10/Materials (discovered 5 exits: *Mat x3 / [*Min x2]) -10/Mines -9/Materials (discovered 4 exits: *Mat x3 / [*Min]) -9/Mines (discovered 3 exits: *Mat x2 / [*Exi]) -9/Exiles -8/Mines -8/Materials -8/Garrison (discovered 2 exits: *Mat x2) -8/Materials -8/Garrison -7/Factory (discovered 2 exits: *Fac / Gar) -7/Garrison (discovered 3 exits: *Fac x3) -6/Factory (discovered 4 exits: Fac x4) -6/Waste -6/Factory -5/Factory -5/Extension (discovered 2 exits: *Fac / *Cet) -5/Cetus (discovered 2 exits: *Fac / *Arc) -5/Archives (discovered 2 exits: *Hub x2) -5/Hub_04(d) -4/Factory (discovered 4 exits: *Res x4) -3/Research (discovered 2 exits: *Qua x2) -3/Quarantine (discovered 2 exits: *Res / *Sec) -3/Section 7 -2/Research (discovered 2 exits: *Tes x2) -2/Testing -1/Access (discovered 2 exits: *Sur / *Com) -1/Command (discovered 2 exits: Sur x2) By MAIN.C's Side History --------- Turn | Location | Event 7 | -11/Scrapyard | Discovered new exit (range 3) 152 | -11/Scrapyard | Entered Materials 306 | -10/Materials | Build established: Mutant 463 | -10/Materials | Discovered new exit (range 8) 555 | -10/Materials | Discovered new exit (range 12) 765 | -10/Materials | Discovered new exit (range 7) 860 | -10/Materials | Central database locked down 998 | -10/Materials | Discovered new exit (range 10) 1205 | -10/Materials | Discovered new exit (range 16) 1485 | -10/Materials | Entered Mines 1708 | -10/Mines | Learned location of Zion (-6) 1798 | -10/Mines | Discovered new exit (range 8) 1985 | -10/Mines | Assisted by bots powering up and referring to "LRC-V3" 2177 | -10/Mines | Entered Materials 2177 | -9/Materials | Accompanied by 3 allies 2177 | -9/Materials | Evolved 2 slots: Propulsion x2 2526 | -9/Materials | Discovered new exit (range 15) 3080 | -9/Materials | Discovered new exit (range 12) 3229 | -9/Materials | Build established: Scavenger-Mutant 3808 | -9/Materials | Discovered new exit (range 15) 4127 | -9/Materials | Discovered new exit (range 14) 4252 | -9/Materials | Entered Mines 4294 | -9/Mines | Discovered new exit (range 8) 4424 | -9/Mines | Discovered new exit (range 6) 4544 | -9/Mines | Deemed a non-threat by the Exiles lab entrance 4544 | -9/Mines | Discovered new exit (range 5) 4554 | -9/Mines | Entered Exiles 4610 | -9/Exiles | Met 8R-AWN 4653 | -9/Exiles | Met EX-HEX 4718 | -9/Exiles | Met EX-BIN 4746 | -9/Exiles | Met EX-DEC 4842 | -9/Exiles | Discovered new exit (range 10) 4862 | -9/Exiles | Entered Mines 5388 | -8/Mines | Discovered new exit (range 15) 5436 | -8/Mines | Entered Materials 5436 | -8/Materials | Evolved 2 slots: Utility x2 5668 | -8/Materials | Build established: Mutant 6112 | -8/Materials | Identified exit to Garrison 6113 | -8/Materials | Entered Garrison 6154 | -8/Garrison | Build established: Scavenger-Mutant 6233 | -8/Garrison | Destroyed 7 combat bots 6244 | -8/Garrison | Triggered checkpoint 6330 | -8/Garrison | Triggered checkpoint 6346 | -8/Garrison | Discovered new exit (range 19) 6562 | -8/Garrison | Triggered checkpoint 6657 | -8/Garrison | Discovered new exit (range 18) 6660 | -8/Garrison | Triggered checkpoint 6740 | -8/Garrison | Installed Relay Interface Framework 6755 | -8/Garrison | Entered Materials 6980 | -8/Materials | Garrison activated, responded to threat 7105 | -8/Materials | Identified exit to Garrison 7105 | -8/Materials | Entered Garrison 7167 | -8/Garrison | Spotted B-75 Beast 7221 | -8/Garrison | Lost 4 parts (1p1n2w) 7245 | -8/Garrison | Destroyed B-75 Beast 7272 | -8/Garrison | Lost 4 parts (3n1u) 7424 | -8/Garrison | Triggered checkpoint 7467 | -8/Garrison | Garrison Relay disabled 7890 | -8/Garrison | Triggered checkpoint 7938 | -8/Garrison | Triggered checkpoint 8041 | -8/Garrison | Discovered new exit (range 12) 8090 | -8/Garrison | Expanded RIF knowledge: Program Shield 8100 | -8/Garrison | Entered Factory 8100 | -7/Factory | Accompanied by 2 allies 8100 | -7/Factory | Evolved 2 slots: Utility x2 8424 | -7/Factory | Build established: Mutant 8460 | -7/Factory | Discovered new exit (range 19) 8553 | -7/Factory | Identified exit to Garrison 8558 | -7/Factory | Entered Garrison 8558 | -7/Garrison | Accompanied by 2 allies 8586 | -7/Garrison | Triggered checkpoint 8762 | -7/Garrison | Triggered checkpoint 8835 | -7/Garrison | Garrison Relay disabled 8958 | -7/Garrison | Triggered checkpoint 8983 | -7/Garrison | Destroyed 9 combat bots 8983 | -7/Garrison | Spotted B-75 Beast 8983 | -7/Garrison | Spotted B-75 Beast 9058 | -7/Garrison | Discovered new exit (range 19) 9161 | -7/Garrison | Triggered checkpoint 9210 | -7/Garrison | Destroyed 7 combat bots 9305 | -7/Garrison | Discovered new exit (range 10) 9478 | -7/Garrison | Discovered new exit (range 10) 9491 | -7/Garrison | Build established: Scavenger-Mutant 9508 | -7/Garrison | Expanded RIF knowledge: Zone Cloak 9515 | -7/Garrison | Entered Factory 9515 | -6/Factory | Evolved 2 slots: Utility x2 10567 | -6/Factory | Cargo convoy interrupted 10605 | -6/Factory | Lost 4 parts (2n2u) 10619 | -6/Factory | Found Prototype Hackware 10716 | -6/Factory | Identified exit to Factory 10914 | -6/Factory | Build established: Skirmisher 11213 | -6/Factory | Sucked down chute 11213 | -6/Factory | Entered Waste 11214 | -6/Waste | Met a frightened Derelict 11224 | -6/Waste | Spotted C-40 Crusher 11224 | -6/Waste | Spotted C-40 Crusher 11228 | -6/Waste | EMP discharged 11254 | -6/Waste | Spotted C-40 Crusher 11269 | -6/Waste | Crushed by Compactor (1 part destroyed, 1 dropped) 11272 | -6/Waste | Destroyed C-40 Crusher 11272 | -6/Waste | Crushed by Compactor (1 part destroyed, 1 dropped) 11275 | -6/Waste | Crushed by Compactor (1 part destroyed) 11278 | -6/Waste | Destroyed C-40 Crusher 11303 | -6/Waste | Destroyed C-40 Crusher 11328 | -6/Waste | EMP discharged 11328 | -6/Waste | System corruption reached 10% 11331 | -6/Waste | Lost 7 parts (1p2n2u2w) 11343 | -6/Waste | Spotted C-40 Crusher 11371 | -6/Waste | Destroyed C-40 Crusher 11383 | -6/Waste | Spotted C-40 Crusher 11401 | -6/Waste | Destroyed C-40 Crusher 11412 | -6/Waste | Spotted C-40 Crusher 11428 | -6/Waste | EMP discharged 11443 | -6/Waste | Destroyed C-40 Crusher 11528 | -6/Waste | EMP discharged 11628 | -6/Waste | EMP discharged 11695 | -6/Waste | Discovered new exit (range 12) 11725 | -6/Waste | Identified exit to Factory 11727 | -6/Waste | Entered Factory 11884 | -6/Factory | Discovered exit to Factory (range 10) 12369 | -6/Factory | Fabricated G-50 Soldier? 12398 | -6/Factory | Entered another Factory area 12398 | -5/Factory | Accompanied by 3 allies 12398 | -5/Factory | Evolved 2 slots: Utility x1, Weapon x1 12788 | -5/Factory | Repaired Huge Storage Unit 12863 | -5/Factory | Discovered new exit (range 20) 12888 | -5/Factory | Identified exit to Extension 12889 | -5/Factory | Entered Extension 12889 | -5/Extension | Accompanied by 3 allies 13092 | -5/Extension | Rescued A7 13239 | -5/Extension | Build established: Commander-Skirmisher 13264 | -5/Extension | Rescued a captive Derelict 13268 | -5/Extension | Rescued a captive Derelict 13585 | -5/Extension | Spotted B-75 Beast 13609 | -5/Extension | Spotted B-75 Beast 13611 | -5/Extension | Allies destroyed B-75 Beast 13625 | -5/Extension | Allies destroyed B-75 Beast 14089 | -5/Extension | Rescued a captive Derelict 14089 | -5/Extension | Rescued a captive Derelict 14211 | -5/Extension | Disrupted transfer network 14233 | -5/Extension | Discovered new exit (range 10) 14235 | -5/Extension | Discovered new exit (range 6) 14247 | -5/Extension | Identified exit to Cetus 14260 | -5/Extension | Entered Cetus 14260 | -5/Cetus | Accompanied by 13 allies (A7) 14265 | -5/Cetus | Acquired a Cetus Manufacturing Module code from A7 14287 | -5/Cetus | Spotted Cetus Guard 14287 | -5/Cetus | Spotted Cetus Guard 14287 | -5/Cetus | Spotted Cetus Guard 14292 | -5/Cetus | Spotted Cetus Guard 14309 | -5/Cetus | Allies destroyed Cetus Guard 14312 | -5/Cetus | Destroyed Cetus Guard 14315 | -5/Cetus | Allies destroyed Cetus Guard 14317 | -5/Cetus | Allies destroyed Cetus Guard 14344 | -5/Cetus | Extracted ID and sensor layout for unrecognized location from A7's data core 14397 | -5/Cetus | Started Cetus Manufacturing Module 14410 | -5/Cetus | Discovered new exit (range 20) 14422 | -5/Cetus | Manufactured an Enhanced Grunt 14447 | -5/Cetus | Manufactured an Enhanced Grunt 14448 | -5/Cetus | Spotted Cetus Guard 14450 | -5/Cetus | Spotted Cetus Guard 14451 | -5/Cetus | Spotted Cetus Guard 14451 | -5/Cetus | Destroyed Cetus Guard 14454 | -5/Cetus | Spotted Cetus Guard 14461 | -5/Cetus | Destroyed Cetus Guard 14466 | -5/Cetus | Allies destroyed Cetus Guard 14472 | -5/Cetus | Manufactured an Enhanced Grunt 14476 | -5/Cetus | Allies destroyed Cetus Guard 14480 | -5/Cetus | Discovered new exit (range 20) 14495 | -5/Cetus | Met Revision 17 14497 | -5/Cetus | Manufactured an Enhanced Grunt 14522 | -5/Cetus | Manufactured an Enhanced Grunt 14627 | -5/Cetus | Identified exit to Archives 14632 | -5/Cetus | Entered Archives 14632 | -5/Archives | Accompanied by 4 allies 14687 | -5/Archives | Discovered new exit (range 19) 14695 | -5/Archives | Unable to access archive contents 15012 | -5/Archives | Build established: Scavenger-Skirmisher 15484 | -5/Archives | Discovered new exit (range 19) 15513 | -5/Archives | Identified exit to Hub_04(d) 15515 | -5/Archives | Entered Hub_04(d) 15515 | -5/Hub_04(d) | Accompanied by 3 allies 15886 | -5/Hub_04(d) | Discovered new exit (range 18) 15923 | -5/Hub_04(d) | Identified exit to Factory 16086 | -5/Hub_04(d) | Network Hub disabled 16098 | -5/Hub_04(d) | Entered Factory 16098 | -4/Factory | Accompanied by 2 allies 16098 | -4/Factory | Evolved 2 slots: Power x1, Utility x1 17098 | -4/Factory | First assault squad dispatched 17284 | -4/Factory | Identified exit to Research 17449 | -4/Factory | Entered Research 17449 | -3/Research | Evolved 2 slots: Power x1, Utility x1 17527 | -3/Research | Identified exit to Quarantine 18076 | -3/Research | Entered Quarantine 18411 | -3/Quarantine | Identified exit to Research 18516 | -3/Quarantine | Found Alien Impact Weapon 18516 | -3/Quarantine | Identified Core Stripper 18959 | -3/Quarantine | Found Alien Energy Cannon 18959 | -3/Quarantine | Identified Core Cannon 19050 | -3/Quarantine | Found Alien Artifact 19050 | -3/Quarantine | Identified Phase Redirector 19106 | -3/Quarantine | Found Alien Artifact 19157 | -3/Quarantine | Spotted Fortress 19285 | -3/Quarantine | Discovered new exit (range 6) 19295 | -3/Quarantine | Identified exit to Section 7 19297 | -3/Quarantine | Entered Section 7 19331 | -3/Section 7 | Spotted S7 Guard 19348 | -3/Section 7 | Destroyed S7 Guard 19431 | -3/Section 7 | Found Alien Artifact 19464 | -3/Section 7 | Identified Transdimensional Reconstructor 19538 | -3/Section 7 | Found Alien Artifact 19809 | -3/Section 7 | Found Alien Artifact 20064 | -3/Section 7 | Build established: Scavenger-Tank 20525 | -3/Section 7 | Spotted S7 Guard 20527 | -3/Section 7 | Destroyed S7 Guard 20571 | -3/Section 7 | Found Alien Artifact 20822 | -3/Section 7 | Spotted S7 Guard 20840 | -3/Section 7 | Destroyed S7 Guard 20925 | -3/Section 7 | Found Alien Artifact 20960 | -3/Section 7 | Spotted Executioner 20962 | -3/Section 7 | Spotted Executioner 21006 | -3/Section 7 | Destroyed Executioner 21019 | -3/Section 7 | Destroyed Executioner 21054 | -3/Section 7 | Found Prototype Device 21054 | -3/Section 7 | Identified Adv. Kinecellerator 21065 | -3/Section 7 | Found Prototype Processor 21065 | -3/Section 7 | Identified Exp. Core Analyzer 21308 | -3/Section 7 | Found Alien Energy Gun 21308 | -3/Section 7 | Identified Sigix Sheargun 21321 | -3/Section 7 | Spotted Striker 21321 | -3/Section 7 | Spotted Striker 21398 | -3/Section 7 | Spotted Striker 21400 | -3/Section 7 | Spotted Striker 21725 | -3/Section 7 | Found Alien Artifact 21725 | -3/Section 7 | Identified Integrity Redistributor 21725 | -3/Section 7 | Used Integrity Redistributor, redistributed integrity from core (-231) 21726 | -3/Section 7 | Core integrity fell below 50% 21823 | -3/Section 7 | Found Alien Artifact 21823 | -3/Section 7 | Identified LRC Armor 21823 | -3/Section 7 | Installed LRC Armor, increased core integrity (+250) 21841 | -3/Section 7 | Found Alien Artifact 21841 | -3/Section 7 | Identified LRC Boosters 21841 | -3/Section 7 | Installed LRC Boosters, increased mass support (+10) 21929 | -3/Section 7 | Found Integrity Redistributor 22058 | -3/Section 7 | Spotted B-99 Colossus 22414 | -3/Section 7 | Spotted Alpha 7 22540 | -3/Section 7 | Found Alien Artifact 22588 | -3/Section 7 | Identified Integrated Dissipator 22588 | -3/Section 7 | Identified Core Membrane 22588 | -3/Section 7 | Identified Navigation Efficiency Matrix 22588 | -3/Section 7 | Identified Core Reset Matrix 22588 | -3/Section 7 | Identified Core Physics Calibrator 22588 | -3/Section 7 | Identified Spacefold Activator 22588 | -3/Section 7 | Installed Integrated Dissipator, increased core heat dissipation (+20) 22590 | -3/Section 7 | Installed Core Membrane, gained immunity to corruption 23134 | -3/Section 7 | Spotted B-86 Titan 23180 | -3/Section 7 | Destroyed B-86 Titan 23360 | -3/Section 7 | Spotted S7 Guard 23633 | -3/Section 7 | Discovered exit to Research (range 5) 23692 | -3/Section 7 | Entered Research 23692 | -2/Research | Evolved 2 slots: Propulsion x2 24161 | -2/Research | Spotted B-90 Cyclops 24389 | -2/Research | Identified exit to Testing 24600 | -2/Research | Spotted B-90 Cyclops 24934 | -2/Research | Spotted B-90 Cyclops 25036 | -2/Research | Destroyed B-90 Cyclops 25227 | -2/Research | Entered Testing 25287 | -2/Testing | Protovariant out of control (PH-6SB66EK2OI) 25310 | -2/Testing | Garrison activated, responded to threat 25373 | -2/Testing | Found Prototype Launcher 25373 | -2/Testing | Identified Mni. Smartbomb Launcher 25386 | -2/Testing | Identified exit to Access 25678 | -2/Testing | Spotted Striker 25678 | -2/Testing | Spotted Striker 25747 | -2/Testing | Found Prototype Device 25751 | -2/Testing | Identified Exp. Phase Shifter 25758 | -2/Testing | Found Prototype Device 25763 | -2/Testing | Identified Exp. Transmission Jammer 25814 | -2/Testing | Found Prototype Device 25814 | -2/Testing | Identified Thermal Barrier 25897 | -2/Testing | Found Prototype Energy Cannon 25897 | -2/Testing | Identified Imp. Potential Cannon 25986 | -2/Testing | Used Integrity Redistributor, redistributed integrity from core (-142) 25988 | -2/Testing | Entered Access 25988 | -1/Access | Evolved 2 slots: Power x1, Weapon x1 26367 | -1/Access | Energy Cycler disabled 26387 | -1/Access | Build established: Generator-Gunner 26738 | -1/Access | First assault squad dispatched 27134 | -1/Access | Destroyed 11 combat bots 27277 | -1/Access | Spotted B-99 Colossus 27281 | -1/Access | Spotted B-99 Colossus 27282 | -1/Access | Warped through subspace 27355 | -1/Access | Discovered new exit (range 5) 27568 | -1/Access | Discovered new exit (range 8) 27583 | -1/Access | Entered Command 27892 | -1/Command | Spotted B-99 Colossus 27976 | -1/Command | Spotted M Guard 27977 | -1/Command | Spotted M Guard 27977 | -1/Command | Spotted Combat Programmer 27978 | -1/Command | Spotted Combat Programmer 28070 | -1/Command | Met MAIN.C 28072 | -1/Command | 0b10 Conduit disabled 28109 | -1/Command | Destroyed MAIN.C Shell 28112 | -1/Command | MAIN.C activated Command garrisons 28112 | -1/Command | Surrendered to MAIN.C 28112 | -1/Command | Loaded intel: 57 machine locations 28112 | -1/Command | Loaded intel: 115 trap records 28112 | -1/Command | Identified exit to Surface 28112 | -1/Command | Discovered exit to Surface (range 49) 28112 | -1/Command | Discovered exit to Surface (range 85) 28227 | -1/Command | Found Prototype Reactor 28227 | -1/Command | Identified Vortex Chain Reactor 28230 | -1/Command | Found Prototype Reactor 28230 | -1/Command | Identified Zero-point Reactor 28237 | -1/Command | Found Prototype Energy Cannon 28237 | -1/Command | Identified Null Cannon 28245 | -1/Command | Found Prototype Device 28245 | -1/Command | Identified Exp. EM Disruption Field 28248 | -1/Command | Found Prototype Device 28248 | -1/Command | Identified Exp. System Purifier 28291 | -1/Command | MAIN.C activated Command garrisons 28332 | -1/Command | Unknown forces attacked Command 28332 | -1/Command | Spotted EQ-002 28332 | -1/Command | Spotted EQ-003 28332 | -1/Command | Spotted EQ-004 28332 | -1/Command | Spotted EQ-000 28332 | -1/Command | Spotted EQ-006 28332 | -1/Command | Spotted EQ-005 28332 | -1/Command | Spotted EQ-013 28332 | -1/Command | Spotted EQ-001 28332 | -1/Command | Spotted EQ-009 28339 | -1/Command | Destroyed EQ-000 28339 | -1/Command | Destroyed EQ-013 28342 | -1/Command | Destroyed EQ-005 28342 | -1/Command | Destroyed EQ-009 28349 | -1/Command | Destroyed EQ-003 28414 | -1/Command | Spotted EQ-019 28414 | -1/Command | Spotted EQ-021 28414 | -1/Command | Spotted EQ-018 28418 | -1/Command | Destroyed EQ-018 28426 | -1/Command | Destroyed EQ-021 28514 | -1/Command | Spotted EQ-030 28515 | -1/Command | Destroyed EQ-030 28520 | -1/Command | Spotted EQ-038 28520 | -1/Command | Spotted EQ-040 28520 | -1/Command | Spotted EQ-039 28525 | -1/Command | Destroyed EQ-039 28528 | -1/Command | Destroyed EQ-038 28530 | -1/Command | Spotted EQ-034 28534 | -1/Command | Spotted EQ-036 28535 | -1/Command | Destroyed EQ-040 28539 | -1/Command | Spotted EQ-053 28541 | -1/Command | Destroyed EQ-036 28558 | -1/Command | Destroyed EQ-034 28569 | -1/Command | Spotted EQ-025 28595 | -1/Command | Spotted EQ-059 28597 | -1/Command | Spotted EQ-050 28597 | -1/Command | Spotted EQ-051 28602 | -1/Command | Destroyed EQ-051 28602 | -1/Command | Destroyed EQ-059 28605 | -1/Command | Destroyed EQ-050 28608 | -1/Command | Spotted EQ-055 28621 | -1/Command | Destroyed EQ-055 28629 | -1/Command | Spotted EQ-064 28629 | -1/Command | Spotted EQ-062 28629 | -1/Command | Spotted EQ-063 28629 | -1/Command | Spotted EQ-060 28629 | -1/Command | Spotted EQ-061 28637 | -1/Command | Destroyed EQ-062 28642 | -1/Command | Destroyed EQ-064 28645 | -1/Command | Destroyed EQ-060 28649 | -1/Command | Spotted EQ-031 28661 | -1/Command | Spotted EQ-075 28661 | -1/Command | Destroyed EQ-063 28667 | -1/Command | Destroyed EQ-075 28678 | -1/Command | Destroyed EQ-031 28683 | -1/Command | Spotted EQ-074 28688 | -1/Command | Lost 5 parts (1p2u2w) 28688 | -1/Command | Destroyed EQ-074 28695 | -1/Command | Spotted EQ-071 28698 | -1/Command | Destroyed EQ-071 28700 | -1/Command | Spotted EQ-066 28707 | -1/Command | Spotted EQ-077 28708 | -1/Command | Spotted EQ-068 28712 | -1/Command | Destroyed EQ-066 28713 | -1/Command | Attackers retreated from Command 28715 | *** | Fortifying 0b10! Last Messages --------------- 28690_ Acquired 6 matter. 28698_ Destroyed Imp. Shock Absorption System. 28698_ EQ-071 suffers critical hit (Meltdown). 28698_ Prototype Device melted. 28702_ Slug penetrates M Guard. 28705_ EQ-066 knocked back. 28707_ Ragnarok Missile intercepted. 28708_ EQ-066 knocked back. 28710_ Destroyed Lgt. Quantum Reactor. 28711_ EQ-066 knocked back. 28712_ EQ-066 suffers critical hit (Meltdown). 28713_ The unstable cave ceiling collapses. 28713_ ALERT: Enemy forces retreating. MAIN.C: I admit your assistance was pivotal here. It looks like I was right to trust you. This attack appears to have been designed to merely test our defenses, although it was nearly effective enough to force me to take the conflict to the next level. Investigating the origins of these bots should be one of our highest priorities... Map ----- +----------------------------------------------------+ | #?# ####### #???????????????????????????????? | | ##?# # ^+ #???????????????????????????????? | | #??# # # #???????????????????????????????? | | #### # # #???????????????????????????????? | | # + #???????????????????????????????? | | # # #???????????????????????????????? | | + + #??###########################??? | | ### # # #??#???????????????????? ???#??? | | /### ####### #??#?################### ###?#??? | | # #????# #??#?#"" " " " ###### | | # #????# #??#?# " #?#??? | | + #????# #??#?#" ###### | | # #????# #??#?# % | | !# #????# #??#?# | | ## ##????# #??#?# | | ## #?????# #??#?# ##### | | #### ####??# #??#?# # #??? | | ???# # #??# #??#?# % ###### | | #### # #### #??#?# !% #?#??? | | % #??#?# #?#??? | | #### #??# # !! #?#??? | | # ] #??# # ! % #?#??? | | # ] % #??# % M % #?#??? | | # ] !#### % % #?#??? | | !*!; = ! # #??? | | !*!; Y ! @ #??? | | **!# Y % ! # #??? | | #### # # ## #?#??? | | #### % #?# #?#??? | | ?#?# #?#??? | | ] #?#?######## # %########;##?#??? | | < ##### # #?#???????? #???????#??#??? | | #???# # " #?###########################??? | | ###???# # """ #??????????????????????????????? | | ??????# # """" #??????????????????????????????? | | ####### + "" #??????????????????????????????? | | # # #??????????????????????????????? | | # # #??????????????????????????????? | | + + """" #??????????????????????????????? | | #### """" #??????????????????????????????? | | ! #??# """" #??????????????????????????????? | | #??# """" #??????????????????????????????? | | #??# #??????????????????????????????? | | #??#! #??????????????????????????????? | | ####+##??# #??????????????????????????????? | | ?# #??# #??????????????????????????????? | | ?# ########+####??????????????????????????????? | | ?# + #???????????????????????????????? | | ?# # #???????????????????????????????? | | ### ## #???????????????????????????????? | +----------------------------------------------------+ Best States ------------- Heat Dissipation 179 Coolant Potential 100 Energy Generation 139 Energy Capacity 1860 Matter Stores 300 Matter Capacity 300 Sight Range 23 Robot Scan Range 16 Terrain Scan Range 20 Terrain Scan Density 10 Power Amplification 40 Armor Coverage 225 Resistance: KI 45 Resistance: TH 70 Resistance: EX 20 Resistance: EM 95 Resistance: I 20 Resistance: S 20 Resistance: P 20 Weapon Cycling 25 Phase Shifting 15 Evasion (%) 55 Targeting Accuracy 8 Core Analysis 8 Recoil Reduction 6 Particle Charging 20 Offensive Hacking 10 Relay Coupler Types 1 Relay Coupler Value 36 Item Schematics ----------------- Hcp. Storage Unit | -10/Materials | Hacked Robot Schematics ------------------ G-50 Soldier | -6/Factory | Hacked Fabricated ------------ G-50 Soldier | x3 | -6/Factory Alien Tech Used ----------------- Core Stripper Core Cannon Phase Redirector Sigix Sheargun Integrity Redistributor LRC Armor LRC Boosters Integrated Dissipator Core Membrane Transdimensional Reconstructor Spacefold Activator Achievements -------------- None Challenges ------------ None Game ------ Seed SiegeFireLog Manual? 0 Play Time 03:52:37 Cumulative 262.9 hours Start 2022.04.23 @ 17:37:19 End 2022.04.24 @ 09:41:29 Sessions 5 Manual Loads 0 Difficulty Adventurer Special Mode None Game No. 195 Rogue 167 Adventurer 10 Explorer 18 Win Type 8 Total 33 Types 14/1/3/9/1/0/1/1/3 Lore% 74 Gallery% 84 Achievement% 73 Wizard Run 0 Options --------- ASCII 0 Keyboard 0 Movement Mouse Keybinds 0 Fullscreen 1 Font 18/SmallcapsGlow Map View 76x50 Tactical HUD 1 Map Filters NONE Filters NONE Steam 1 RUN: 1e113235-bf08-472f-9852-e06c96ee517d